bitfinex-derivatives/quotes_BNBF0:USTF0_20250221
["timestamp","ask_amount","ask_price","bid_price","bid_amount"]
[1740156935187,0.30432599,657.19,656.09,1.021]
[1740156935391,0.27992132,657.18,656.09,1.021]
[1740156935793,0.30433988,657.16,656.09,1.021]
[1740156935995,0.27992132,657.15,656.09,1.021]
[1740156936195,0.30435378,657.13,656.09,1.021]
[1740156936489,0.27992132,657.12,656.09,1.021]
[1740156936690,0.30436767,657.1,656.09,1.021]
[1740156936994,0.27992132,657.09,656.09,1.021]
[1740156938890,0.27993775,657.08,656.09,1.021]
[1740156939110,0.27993775,657.07,656.09,1.021]
[1740156939291,0.27993775,657.09,656.09,1.021]
[1740156940494,0.30438157,657.07,655.74,1.13047597]
[1740156941297,0.30438157,657.07,655.75,0.25731205]
[1740156941499,0.30438157,657.07,655.76,1.13047597]
[1740156941690,0.30438157,657.07,655.77,0.25731205]
[1740156943599,0.30438157,657.07,655.76,1.13047597]
[1740156945199,0.2798771,657.06,655.78,1.13047597]
[1740156945393,0.30439547,657.04,655.79,0.25731927]
[1740156945592,0.2798771,657.03,655.79,0.25731927]
[1740156945796,0.30440936,657.01,655.79,0.25731927]
[1740156948298,0.30440936,657.01,655.8,0.25731927]
[1740156948497,0.30440936,657.01,655.77,0.25731927]
[1740156948696,0.30440936,657.01,655.76,1.13047597]
[1740156949302,0.30440936,657.01,655.77,0.25731369]
[1740156950104,0.30440936,657.01,655.76,1.13047597]
[1740156950498,0.30440936,657.01,655.75,0.777]
[1740156957211,0.954,657.0,655.75,0.777]
[1740156957415,0.30442327,656.98,655.75,0.777]
[1740156961917,0.2798937,656.97,655.76,0.25733574]
[1740156962119,0.30443717,656.95,655.76,0.25733574]
[1740156962415,0.2798937,656.94,655.76,0.25733574]
[1740156962718,0.30445107,656.92,655.76,0.25733574]
[1740156962918,0.2798937,656.91,655.76,0.25733574]
[1740156963120,0.30446497,656.89,655.76,0.25733574]
[1740156963420,0.30446497,656.89,655.9,1.13047597]
[1740156966218,0.30446497,656.89,656.05,1.13047597]
[1740156967721,0.2799263,656.88,656.05,1.13047597]
[1740156967922,0.30447888,656.86,656.05,1.13047597]
[1740156969922,0.30447888,656.86,656.14,1.13047597]
[1740156972821,0.30447888,656.86,656.21,1.13047597]
[1740156976530,0.30447888,656.86,656.47,1.13047597]
[1740156979231,0.30447888,656.86,655.9,2.24890273]
[1740156979232,0.30447888,656.86,656.54,1.13047597]
[1740156981731,0.30447888,656.86,656.55,1.13047597]
[1740156984827,0.30447888,656.86,656.43,1.13047597]
[1740156987533,0.30447888,656.86,656.42,1.13047597]
[1740156989835,0.30447888,656.86,656.37,1.13047597]
[1740156992132,0.30447888,656.86,656.35,1.13047597]
[1740156995635,0.30447888,656.86,655.98,1.10150337]
[1740156995636,0.30447888,656.86,656.5,1.13047597]
[1740156998238,0.30447888,656.86,655.98,2.24890273]
[1740156998239,0.30447888,656.86,656.47,1.13047597]
[1740157000343,0.30447888,656.86,656.44,1.13047597]
[1740157003342,0.30447888,656.86,656.53,1.13047597]
[1740157006450,0.30447888,656.86,656.58,1.13047597]
[1740157008452,0.30447888,656.86,655.88,2.24890273]
[1740157008453,0.30447888,656.86,656.55,1.13047597]
[1740157010753,0.30447888,656.86,656.6,1.13047597]
[1740157011757,0.30447888,656.86,656.61,1.241]
[1740157012858,0.30447888,656.86,656.76,1.13047597]
[1740157015460,0.30447888,656.86,656.67,1.13047597]
[1740157016463,0.27993757,656.85,656.67,1.13047597]
[1740157016866,0.30447888,656.86,656.67,1.13047597]
[1740157018066,0.30447888,656.86,656.61,1.241]
[1740157034176,0.2799124,656.85,656.61,1.241]
[1740157034570,0.30448815,656.84,656.61,1.241]
[1740157034773,0.2799124,656.83,656.61,1.241]
[1740157034973,0.30449742,656.82,656.61,1.241]
[1740157043679,0.27998227,656.81,656.61,1.241]
[1740157044283,0.30450669,656.8,656.61,1.241]
[1740157044487,0.27998227,656.79,656.61,1.241]
[1740157044683,0.30451597,656.78,656.61,1.241]
[1740157044978,0.27998227,656.77,656.61,1.241]
[1740157045179,0.30451597,656.78,656.61,1.241]
[1740157048790,0.28004489,656.77,656.61,1.241]
[1740157049486,0.30452524,656.76,656.61,1.241]
[1740157049687,0.28004489,656.75,656.61,1.241]
[1740157049887,0.30453451,656.74,656.61,1.241]
[1740157050085,0.28004489,656.73,656.61,1.241]
[1740157050991,0.30454379,656.72,656.61,1.241]
[1740157051191,0.28004489,656.71,656.61,1.241]
[1740157051391,0.30455306,656.7,656.61,1.241]
[1740157051586,0.28004489,656.69,656.61,1.241]
[1740157051790,0.30456234,656.68,656.61,1.241]
[1740157051990,0.28004489,656.67,656.61,1.241]
[1740157052191,0.30457162,656.66,656.61,1.241]
[1740157052387,0.28004489,656.65,656.61,1.241]
[1740157052592,0.30458089,656.64,656.61,1.241]
[1740157052791,0.28004489,656.63,656.61,1.241]
[1740157052991,0.30459017,656.62,656.61,1.241]
[1740157053191,0.58463506,656.62,656.61,1.241]
[1740157053593,0.58465477,656.62,656.61,1.241]
[1740157055092,0.30459017,656.62,656.61,1.241]
[1740157055291,0.58465893,656.62,656.61,1.241]
[1740157056690,0.30459017,656.62,656.61,1.241]
[1740157056893,0.58465893,656.62,656.61,1.241]
[1740157058293,0.58465797,656.62,656.61,1.241]
[1740157061495,0.58462244,656.62,656.61,1.241]
[1740157061801,0.30459017,656.62,656.61,1.241]
[1740157062396,0.58462944,656.62,656.61,1.241]
[1740157062603,0.30459017,656.62,656.61,1.241]
[1740157064698,0.58464149,656.62,656.61,1.241]
[1740157064902,0.30459017,656.62,656.61,1.241]
[1740157069016,0.58463712,656.62,656.61,1.241]
[1740157069715,0.30459017,656.62,656.61,1.241]
[1740157069916,0.30459017,656.62,655.68,1.13047597]
[1740157070714,0.30459017,656.62,655.77,1.13047597]
[1740157077823,0.30459017,656.62,655.83,1.13047597]
[1740157080326,0.30459017,656.62,656.07,1.13047597]
[1740157084226,0.30459017,656.62,656.1,1.13047597]
[1740157087731,0.30459017,656.62,656.28,1.13047597]
[1740157090930,0.30459017,656.62,656.1,1.13047597]
[1740157093127,0.30459017,656.62,656.05,1.13047597]
[1740157093325,0.28003288,656.61,656.05,1.13047597]
[1740157093524,0.30459017,656.62,656.05,1.13047597]
[1740157095634,0.30459017,656.62,655.7,1.10150337]
[1740157095635,0.30459017,656.62,656.01,1.13047597]
[1740157096036,0.28006098,656.61,656.01,1.13047597]
[1740157096333,0.30459945,656.6,656.01,1.13047597]
[1740157098138,0.30459945,656.6,656.08,1.13047597]
[1740157100932,0.30459945,656.6,656.23,1.13047597]
[1740157103034,0.30459945,656.6,656.02,1.13047597]
[1740157105531,0.30459945,656.6,656.03,1.13047597]
[1740157108834,0.30459945,656.6,656.09,1.13047597]
[1740157112137,0.30459945,656.6,655.86,1.10150337]
[1740157112138,0.30459945,656.6,656.12,1.13047597]
[1740157114736,0.30459945,656.6,656.25,1.13047597]
[1740157117138,0.30459945,656.6,656.2,1.13047597]
[1740157118938,0.30459945,656.6,656.21,1.241]
[1740157122042,0.30459945,656.6,656.24,1.13047597]
[1740157124242,0.30459945,656.6,656.25,1.13047597]
[1740157127443,0.30459945,656.6,656.24,1.13047597]
[1740157130151,0.30459945,656.6,656.21,1.241]
[1740157142460,0.30459945,656.6,656.3,1.13047597]
[1740157144558,0.30459945,656.6,656.34,1.13047597]
[1740157147266,0.30459945,656.6,656.21,1.241]
[1740157161187,0.30459945,656.6,656.0,1.13047597]
[1740157162779,0.30459945,656.6,655.89,1.59031795]
[1740157162780,0.30459945,656.6,656.03,1.13047597]
[1740157165287,0.30459945,656.6,656.05,1.13047597]
[1740157165682,0.30459945,656.6,656.06,1.222]
[1740157168183,0.30459945,656.6,656.42,1.13047597]
[1740157170988,0.30459945,656.6,656.49,1.13047597]
[1740157174691,0.30459945,656.6,656.46,1.13047597]
[1740157177594,0.30459945,656.6,656.46,1.11464106]
[1740157177793,0.30459945,656.6,656.37,1.11464106]
[1740157179996,0.30459945,656.6,656.06,2.32350337]
[1740157182999,0.30459945,656.6,656.06,1.222]
[1740157184091,0.28004711,656.59,656.06,1.222]
[1740157185000,0.30460873,656.58,656.06,1.222]
[1740157201508,0.28007742,656.57,656.06,1.222]
[1740157202203,0.304618,656.56,656.06,1.222]
[1740157202410,0.28007742,656.55,656.06,1.222]
[1740157202707,0.30462728,656.54,656.06,1.222]
[1740157238234,1.77604832,657.19,656.06,1.222]
[1740157238536,1.38905595,657.18,656.06,1.222]
[1740157238736,4.0049136,657.17,656.06,1.222]
[1740157238937,3.16510427,657.16,656.06,1.222]
[1740157239237,3.16510427,657.15,656.06,1.222]
[1740157239436,3.16510427,657.14,656.06,1.222]
[1740157239737,4.0049136,657.13,656.06,1.222]
[1740157239935,4.0049136,657.12,656.06,1.222]
[1740157240232,3.16510427,657.11,656.06,1.222]
[1740157240437,0.83980933,657.12,656.06,1.222]
[1740157240438,3.16510427,657.1,656.06,1.222]
[1740157240638,4.0049136,657.09,656.06,1.222]
[1740157240937,1.38905595,657.08,656.06,1.222]
[1740157241137,1.38905595,657.07,656.06,1.222]
[1740157241334,4.00468999,657.06,656.06,1.222]
[1740157241539,3.16488066,657.05,656.06,1.222]
[1740157241837,3.16488066,657.04,656.06,1.222]
[1740157242037,3.16488066,657.03,656.06,1.222]
[1740157242236,3.16488066,657.02,656.06,1.222]
[1740157242538,3.16488066,657.01,656.06,1.222]
[1740157242738,3.16488066,657.0,656.06,1.222]
[1740157242935,3.16488066,656.99,656.06,1.222]
[1740157243141,3.16488066,656.98,656.06,1.222]
[1740157243439,3.16488066,656.97,656.06,1.222]
[1740157243738,3.16488066,656.96,656.06,1.222]
[1740157244038,1.38905595,656.95,656.06,1.222]
[1740157244232,2.22886528,656.94,656.06,1.222]
[1740157244436,1.38913988,656.93,656.06,1.222]
[1740157244632,2.22894921,656.92,656.06,1.222]
[1740157244833,1.38913988,656.91,656.06,1.222]
[1740157245033,0.83980933,656.92,656.06,1.222]
[1740157245034,1.38913988,656.9,656.06,1.222]
[1740157245238,1.38913988,656.89,656.06,1.222]
[1740157245439,2.22894921,656.88,656.06,1.222]
[1740157245639,1.38913988,656.87,656.06,1.222]
[1740157245939,0.89250564,657.23,656.06,1.222]
[1740157245940,2.22924374,656.86,656.06,1.222]
[1740157246140,1.38948644,656.85,656.06,1.222]
[1740157246339,1.38948644,656.84,656.06,1.222]
[1740157246536,0.28010064,656.83,656.06,1.222]
[1740157246736,0.28010064,656.82,656.06,1.222]
[1740157246940,0.28010064,657.18,656.06,1.222]
[1740157247137,1.38947776,657.17,656.06,1.222]
[1740157247433,4.00425799,657.16,656.06,1.222]
[1740157247633,3.16429472,657.15,656.06,1.222]
[1740157247839,3.16429472,657.14,656.06,1.222]
[1740157248036,3.16429472,657.13,656.06,1.222]
[1740157248239,3.16429472,657.12,656.06,1.222]
[1740157248440,3.16429472,657.11,656.06,1.222]
[1740157248636,3.16429472,657.1,656.06,1.222]
[1740157248941,4.00425937,657.09,656.06,1.222]
[1740157249140,3.16429409,657.08,656.06,1.222]
[1740157249335,3.16429409,657.07,656.06,1.222]
[1740157249535,3.16429409,657.06,656.06,1.222]
[1740157249738,3.16429409,657.05,656.06,1.222]
[1740157249935,3.16429409,657.04,656.06,1.222]
[1740157250139,4.00425874,657.03,656.06,1.222]
[1740157250340,3.16429409,657.02,656.06,1.222]
[1740157250538,2.8841927,657.01,656.06,1.222]
[1740157250740,2.8841927,657.0,656.06,1.222]
[1740157250942,3.16429306,656.99,656.06,1.222]
[1740157251143,3.16429306,656.98,656.06,1.222]
[1740157251342,4.00425771,656.97,656.06,1.222]
[1740157251543,1.38947748,656.96,656.06,1.222]
[1740157251843,1.38947748,656.95,656.06,1.222]
[1740157252035,1.38970221,656.94,656.06,1.222]
[1740157252344,0.28010036,656.93,656.06,1.222]
[1740157252942,1.10913072,656.92,656.06,1.222]
[1740157253142,1.38923108,656.91,656.06,1.222]
[1740157253442,1.11984132,656.9,656.06,1.222]
[1740157253637,0.28010036,656.89,656.06,1.222]
[1740157254143,0.28010036,656.88,656.06,1.222]
[1740157254339,2.05517592,657.12,656.06,1.222]
[1740157254544,1.3894498,657.11,656.06,1.222]
[1740157254747,4.00458288,657.1,656.06,1.222]
[1740157254947,3.16452536,657.09,656.06,1.222]
[1740157255145,3.16452536,657.08,656.06,1.222]
[1740157255445,3.16452536,657.07,656.06,1.222]
[1740157255745,4.00458288,657.06,656.06,1.222]
[1740157255946,3.16452536,657.05,656.06,1.222]
[1740157256146,3.16288053,657.04,656.06,1.222]
[1740157256348,3.16288053,657.03,656.06,1.222]
[1740157256541,4.00293805,657.02,656.06,1.222]
[1740157256743,4.00293805,657.01,656.06,1.222]
[1740157256945,3.16288053,657.0,656.06,1.222]
[1740157257146,3.16287195,656.99,656.06,1.222]
[1740157257347,4.00292947,656.98,656.06,1.222]
[1740157257545,3.16287195,656.97,656.06,1.222]
[1740157257745,3.16287195,656.96,656.06,1.222]
[1740157258048,4.00292947,656.95,656.06,1.222]
[1740157258347,3.16287195,656.94,656.06,1.222]
[1740157258546,4.00292947,656.93,656.06,1.222]
[1740157258748,1.38885338,656.92,656.06,1.222]
[1740157258948,1.38885338,656.91,656.06,1.222]
[1740157259148,2.2289109,656.9,656.06,1.222]
[1740157259448,1.38885338,656.89,656.06,1.222]
[1740157259650,1.38885338,656.88,656.06,1.222]
[1740157259948,2.2289109,656.87,656.06,1.222]
[1740157260149,1.1087616,656.86,656.06,1.222]
[1740157260351,0.28007339,656.85,656.06,1.222]
[1740157260944,0.28007339,656.84,656.06,1.222]
[1740157261149,0.28007339,656.83,656.06,1.222]
[1740157261344,1.227,657.2,656.06,1.222]
[1740157261552,3.16559758,657.19,656.06,1.222]
[1740157261749,3.16559758,657.18,656.06,1.222]
[1740157261951,3.16559758,657.17,656.06,1.222]
[1740157262251,3.16595882,657.16,656.06,1.222]
[1740157262451,3.16595882,657.15,656.06,1.222]
[1740157262751,3.16595882,657.14,656.06,1.222]
[1740157263051,3.16595882,657.13,656.06,1.222]
[1740157263246,3.16595882,657.12,656.06,1.222]
[1740157263450,4.00646979,657.11,656.06,1.222]
[1740157263746,1.39002738,657.1,656.06,1.222]
[1740157264051,0.84051097,657.11,656.06,1.222]
[1740157264052,1.39002738,657.09,656.06,1.222]
[1740157264253,1.39002738,657.08,656.06,1.222]
[1740157264449,0.28007023,657.07,656.06,1.222]
[1740157264646,0.28007023,657.08,656.06,1.222]
[1740157264949,0.28007023,657.07,656.06,1.222]
[1740157265146,0.28007023,657.06,656.06,1.222]
[1740157265346,0.28007023,657.05,656.06,1.222]
[1740157265652,1.77765077,657.19,656.06,1.222]
[1740157265851,1.39100074,657.18,656.06,1.222]
[1740157266151,3.16865151,657.17,656.06,1.222]
[1740157266352,1.39100074,657.16,656.06,1.222]
[1740157266549,1.39100074,657.15,656.06,1.222]
[1740157266748,1.39100074,657.14,656.06,1.222]
[1740157266952,1.39100074,657.13,656.06,1.222]
[1740157267148,2.23270466,657.12,656.06,1.222]
[1740157267348,0.30436767,657.1,656.06,1.222]
[1740157267552,1.1217198,657.09,656.06,1.222]
[1740157267748,0.30438157,657.07,656.06,1.222]
[1740157267951,0.28001588,657.06,656.06,1.222]
[1740157268149,0.30439547,657.04,656.06,1.222]
[1740157268352,0.28001588,657.03,656.06,1.222]
[1740157268550,0.30440936,657.01,656.06,1.222]
[1740157270956,0.27990795,657.0,656.06,1.222]
[1740157273058,0.30442327,656.98,656.06,1.222]
[1740157274054,0.27995497,656.97,656.06,1.222]
[1740157274260,0.30443717,656.95,656.06,1.222]
[1740157278265,0.27997989,656.94,656.06,1.222]
[1740157278962,0.27998555,656.93,656.06,1.222]
[1740157279162,0.30445107,656.92,656.06,1.222]
[1740157279461,0.27998555,656.91,656.06,1.222]
[1740157279661,0.30446497,656.89,656.06,1.222]
[1740157279861,0.27998555,656.88,656.06,1.222]
[1740157280062,0.30447888,656.86,656.06,1.222]
[1740157280861,0.28004895,656.85,656.06,1.222]
[1740157281061,0.30448815,656.84,656.06,1.222]
[1740157281255,0.28004895,656.83,656.06,1.222]
[1740157281457,0.30449742,656.82,656.06,1.222]
[1740157282860,0.28002166,656.81,656.06,1.222]
[1740157283259,0.27998586,656.8,656.06,1.222]
[1740157283459,0.27998586,656.81,656.06,1.222]
[1740157283764,0.27998529,656.8,656.06,1.222]
[1740157283964,0.27999113,656.79,656.06,1.222]
[1740157284158,0.27999113,656.81,656.06,1.222]
[1740157284462,0.27999113,656.8,656.06,1.222]
[1740157284763,0.27999113,656.79,656.06,1.222]
[1740157284965,0.27999113,656.81,656.06,1.222]
[1740157285165,0.58449782,656.8,656.06,1.222]
[1740157285366,0.27997622,656.79,656.06,1.222]
[1740157286065,0.30451597,656.78,656.06,1.222]
[1740157286264,0.27997622,656.77,656.06,1.222]
[1740157286465,0.30452524,656.76,656.06,1.222]
[1740157300481,0.30452524,656.76,656.22,1.13718843]
[1740157302476,0.30452524,656.76,648.67,9.05241045]
[1740157302477,0.30452524,656.76,656.19,1.13718843]
[1740157305582,0.30452524,656.76,656.17,1.13718843]
[1740157308683,0.30452524,656.76,656.16,1.13718843]
[1740157310982,0.30452524,656.76,656.23,1.13718843]
[1740157314090,0.30452524,656.76,656.33,1.13718843]
[1740157316693,0.30452524,656.76,656.31,1.13718843]
[1740157317093,0.30452524,656.76,656.31,2.26718843]
[1740157319694,0.30452524,656.76,656.35,1.13718843]
[1740157320494,1.262,657.33,656.35,1.13718843]
[1740157320695,0.30427043,657.31,656.35,1.13718843]
[1740157322494,0.27980158,657.3,656.35,1.13718843]
[1740157323100,0.27980158,657.3,656.68,1.13718843]
[1740157323901,0.30427969,657.29,656.68,1.13718843]
[1740157324102,0.27980158,657.28,656.68,1.13718843]
[1740157324698,0.30428895,657.27,656.68,1.13718843]
[1740157324901,0.27980158,657.26,656.68,1.13718843]
[1740157325103,0.30429821,657.25,656.68,1.13718843]
[1740157325296,0.27980158,657.24,656.68,1.13718843]
[1740157325500,0.30430747,657.23,656.68,1.13718843]
[1740157325799,0.30430747,657.23,656.35,1.13718843]
[1740157326103,0.27987422,657.22,656.35,1.13718843]
[1740157326301,0.30432136,657.2,656.35,1.13718843]
[1740157326503,0.27987422,657.19,656.35,1.13718843]
[1740157326703,0.30433525,657.17,656.35,1.13718843]
[1740157329306,0.27982725,657.16,656.35,1.13718843]
[1740157329501,0.30434914,657.14,656.35,1.13718843]
[1740157329905,0.30434914,657.14,656.5,1.13718843]
[1740157332406,0.30434914,657.14,656.31,1.13]
[1740157333006,0.27983714,657.13,656.31,1.13]
[1740157333202,0.30436304,657.11,656.31,1.13]
[1740157333407,0.27983714,657.1,656.31,1.13]
[1740157333601,0.3043723,657.09,656.31,1.13]
[1740157333802,0.27983714,657.08,656.31,1.13]
[1740157334001,0.30438157,657.07,656.31,1.13]
[1740157334204,0.27983714,657.06,656.31,1.13]
[1740157334403,0.30439083,657.05,656.31,1.13]
[1740157334708,0.27983714,657.04,656.31,1.13]
[1740157335009,0.30439083,657.05,656.31,1.13]
[1740157335709,0.30439083,657.05,656.43,1.13718843]
[1740157336406,0.27984827,657.04,656.43,1.13718843]
[1740157336605,0.3044001,657.03,656.43,1.13718843]
[1740157336802,0.27984827,657.02,656.43,1.13718843]
[1740157337003,0.30440936,657.01,656.43,1.13718843]
[1740157338511,0.30440936,657.01,656.5,1.13718843]
[1740157341612,0.30440936,657.01,656.52,1.13718843]
[1740157346212,0.30440936,657.01,656.49,1.13718843]
[1740157346513,0.27988295,657.0,656.49,1.13718843]
[1740157348012,0.30441863,656.99,656.49,1.13718843]
[1740157349215,0.30441863,656.99,656.31,1.13]
[1740157358719,0.27998776,656.98,656.31,1.13]
[1740157358919,1.11767974,656.97,656.31,1.13]
[1740157359218,1.3976675,656.96,656.31,1.13]
[1740157359419,0.27998776,656.95,656.31,1.13]
[1740157359820,0.84648508,656.94,656.31,1.13]
[1740157360017,0.5844342,656.93,656.31,1.13]
[1740157360321,0.58443883,656.92,656.31,1.13]
[1740157360622,0.58444346,656.91,656.31,1.13]
[1740157360924,1.70120726,656.9,656.31,1.13]
[1740157361220,1.70121189,656.89,656.31,1.13]
[1740157361413,1.028,657.45,656.31,1.13]
[1740157361414,0.58445737,656.88,656.31,1.13]
[1740157361618,0.584462,656.87,656.31,1.13]
[1740157361821,2.24143305,656.86,656.31,1.13]
[1740157362121,2.54591656,656.85,656.31,1.13]
[1740157362320,0.58447591,656.84,656.31,1.13]
[1740157362521,0.58448055,656.83,656.31,1.13]
[1740157362721,0.27998776,656.82,656.31,1.13]
[1740157362923,0.30450206,656.81,656.31,1.13]
[1740157363220,0.27998776,656.8,656.31,1.13]
[1740157363421,0.30451133,656.79,656.31,1.13]
[1740157363614,0.28009848,656.78,656.31,1.13]
[1740157363817,0.3045206,656.77,656.31,1.13]
[1740157364018,0.28009848,656.76,656.31,1.13]
[1740157364215,0.30452988,656.75,656.31,1.13]
[1740157364413,0.28009848,656.74,656.31,1.13]
[1740157364721,0.30453915,656.73,656.31,1.13]
[1740157364917,0.28009848,656.72,656.31,1.13]
[1740157365122,0.30454843,656.71,656.31,1.13]
[1740157365322,0.28009848,656.7,656.31,1.13]
[1740157365516,0.3045577,656.69,656.31,1.13]
[1740157365722,0.28009848,656.68,656.31,1.13]
[1740157365922,0.30456698,656.67,656.31,1.13]
[1740157366122,0.28009848,656.66,656.31,1.13]
[1740157366324,0.30457625,656.65,656.31,1.13]
[1740157366524,0.28009848,656.64,656.31,1.13]
[1740157366823,0.30458553,656.63,656.31,1.13]
[1740157367024,0.28009848,656.62,656.31,1.13]
[1740157367423,0.30459481,656.61,656.31,1.13]
[1740157367618,0.28009848,656.6,656.31,1.13]
[1740157367818,0.30460409,656.59,656.31,1.13]
[1740157368122,0.28009848,656.58,656.31,1.13]
[1740157368423,0.30461336,656.57,656.31,1.13]
[1740157370025,0.28010428,656.56,656.31,1.13]
[1740157370326,0.30462264,656.55,656.31,1.13]
[1740157371124,0.28012212,656.54,656.31,1.13]
[1740157371322,0.30463192,656.53,656.31,1.13]
[1740157372128,0.28012567,656.52,656.31,1.13]
[1740157372321,0.3046412,656.51,656.31,1.13]
[1740157372522,0.28012567,656.5,656.31,1.13]
[1740157372723,0.30465048,656.49,656.31,1.13]
[1740157373025,0.28012567,656.48,656.31,1.13]
[1740157373326,0.30465977,656.47,656.31,1.13]
[1740157374027,0.28012629,656.46,656.31,1.13]
[1740157374229,0.30466905,656.45,656.31,1.13]
[1740157374528,0.28012869,656.44,656.31,1.13]
[1740157374725,0.30467833,656.43,656.31,1.13]
[1740157374921,0.28012869,656.42,656.31,1.13]
[1740157375127,0.30468761,656.41,656.31,1.13]
[1740157402751,0.30468761,656.41,655.95,1.13718843]
[1740157406155,0.30468761,656.41,655.78,1.13718843]
[1740157409055,0.30468761,656.41,655.73,1.13718843]
[1740157410258,0.30468761,656.41,655.74,1.5908632]
[1740157411857,0.30468761,656.41,655.91,1.13718843]
[1740157414964,0.30468761,656.41,655.74,1.5908632]
[1740157414965,0.30468761,656.41,655.96,1.13718843]
[1740157418763,0.30468761,656.41,656.12,1.13718843]
[1740157421769,0.30468761,656.41,655.91,1.13718843]
[1740157424370,0.30468761,656.41,655.8,1.13718843]
[1740157427172,0.30468761,656.41,655.76,1.13718843]
[1740157430170,0.30468761,656.41,655.71,1.13718843]
[1740157432778,0.30468761,656.41,655.6,1.13718843]
[1740157433871,0.30468761,656.41,648.69,0.55959741]
[1740157434077,0.30468761,656.41,653.86,0.30587587]
[1740157434279,0.30468761,656.41,653.87,0.25830202]
[1740157434473,0.30468761,656.41,653.46,10.34358452]
[1740157434474,0.30468761,656.41,653.99,0.30581507]
[1740157434674,0.30468761,656.41,654.0,0.2582929]
[1740157434872,0.30468761,656.41,654.12,0.30575429]
[1740157435174,0.30468761,656.41,654.13,0.2582929]
[1740157435376,0.30468761,656.41,654.24,0.30569821]
[1740157435571,0.30468761,656.41,654.25,0.2582929]
[1740157435777,0.30468761,656.41,655.71,1.13550738]
[1740157439479,0.30468761,656.41,655.73,1.13550738]
[1740157440484,0.30468761,656.41,644.41,7.69146864]
[1740157440680,0.30468761,656.41,655.01,0.25828986]
[1740157440885,0.30468761,656.41,655.01,1.54228986]
[1740157441186,0.30468761,656.41,655.02,0.25828986]
[1740157441684,0.30468761,656.41,655.03,1.59193663]
[1740157441984,0.30468761,656.41,655.04,0.25828986]
[1740157442985,0.30468761,656.41,655.72,1.13598971]
[1740157446178,0.30468761,656.41,655.5,1.13598971]
[1740157446179,0.30468761,656.41,655.89,1.13598971]
[1740157448886,0.30468761,656.41,655.92,1.13598971]
[1740157451487,0.30468761,656.41,656.06,1.13598971]
[1740157454788,0.30468761,656.41,656.08,1.13598971]
[1740157456689,0.30468761,656.41,655.9,1.13598971]
[1740157459593,0.30468761,656.41,655.88,1.13598971]
[1740157462896,0.30468761,656.41,655.95,1.13598971]
[1740157465598,0.30468761,656.41,656.03,1.13598971]
[1740157468499,0.30468761,656.41,656.07,1.13598971]
[1740157472406,0.30468761,656.41,656.02,1.13598971]
[1740157474807,0.30468761,656.41,656.13,1.13598971]
[1740157475207,0.30468761,656.41,656.14,1.018]
[1740157477511,0.30468761,656.41,656.2,1.13598971]
[1740157478205,0.8937757,657.8,656.2,1.13598971]
[1740157478410,0.30405302,657.78,656.2,1.13598971]
[1740157478600,0.27980912,657.77,656.2,1.13598971]
[1740157478802,3.17047883,657.77,656.2,1.13598971]
[1740157479004,3.17047883,657.76,656.2,1.13598971]
[1740157479207,3.17047883,657.75,656.2,1.13598971]
[1740157479409,3.17047883,657.74,656.2,1.13598971]
[1740157479610,3.17047883,657.73,656.2,1.13598971]
[1740157479811,3.17048485,657.72,656.2,1.13598971]
[1740157480008,3.17048485,657.71,656.2,1.13598971]
[1740157480209,3.17048485,657.7,656.44,1.13598971]
[1740157480407,0.30409925,657.68,656.44,1.13598971]
[1740157480609,0.27981514,657.67,656.44,1.13598971]
[1740157480910,0.30411313,657.65,656.44,1.13598971]
[1740157481111,1.39161118,657.64,656.44,1.13598971]
[1740157481410,0.304127,657.62,656.44,1.13598971]
[1740157481711,0.27981514,657.61,656.44,1.13598971]
[1740157481911,0.30414087,657.59,656.44,1.13598971]
[1740157482108,1.39161118,657.58,656.44,1.13598971]
[1740157482311,0.30415475,657.56,656.44,1.13598971]
[1740157482612,1.39161118,657.55,656.44,1.13598971]
[1740157482914,0.30416863,657.53,656.44,1.13598971]
[1740157483106,0.27981514,657.52,656.44,1.13598971]
[1740157483309,0.3041825,657.5,656.33,1.13598971]
[1740157483510,0.27981514,657.49,656.33,1.13598971]